fUSD/lending_fUSD_20240906
["ID","MTS","AMOUNT","RATE_DAILY","PERIOD"]
[337387130,1725636645179,-629.44,0.00014989,2]
[337387132,1725636645189,-629.44,0.00014989,2]
[337387135,1725636645198,-604.6,0.00014989,2]
[337387137,1725636645208,-604.6,0.00014989,2]
[337387139,1725636645217,-500.0,0.00014989,2]
[337387140,1725636645226,-500.0,0.00014989,2]
[337387142,1725636645236,-540.2,0.00014989,2]
[337387144,1725636645249,-500.0,0.00014989,2]
[337387146,1725636645258,-500.0,0.00014989,2]
[337387148,1725636645267,-1567.13,0.00014989,2]
[337387150,1725636645276,-1567.13,0.00014989,2]
[337387152,1725636645285,-500.0,0.00014989,2]
[337387154,1725636645295,-500.0,0.00014989,2]
[337387156,1725636645304,-1811.26,0.00014989,2]
[337387158,1725636645313,-1811.26,0.00014989,2]
[337387160,1725636645323,-211.0,0.0001499,2]
[337387162,1725636645332,-2755.768674,0.0001499,2]
[337387164,1725636645341,-2200.2470504,0.0001499,2]
[337387166,1725636645350,-1644.7254269,0.0001499,2]
[337387168,1725636645359,-1089.2038033,0.0001499,2]
[337387170,1725636645368,-533.6821798,0.0001499,2]
[337387172,1725636645378,-3311.2902975,0.00014993,2]
[337387174,1725636645387,-500.0,0.00014996,2]
[337387176,1725636645397,-29999.99999901,0.00014998,2]
[337387178,1725636645406,-4507.39064086,0.00014999,2]
[337387180,1725636645415,-5800.0,0.00014999,2]
[337387182,1725636645424,-500.0,0.00014999,2]
[337387184,1725636645434,-500.0,0.00014999,2]
[337387186,1725636645443,-500.0,0.00014999,2]
[337387188,1725636645453,-500.0,0.00014999,2]
[337387190,1725636645464,-500.0,0.00014999,2]
[337387192,1725636645474,-500.0,0.00014999,2]
[337387194,1725636645483,-500.0,0.00014999,2]
[337387196,1725636645497,-500.0,0.00014999,2]
[337387198,1725636645512,-500.0,0.00014999,2]
[337387200,1725636645521,-500.0,0.00014999,2]
[337387202,1725636645531,-500.0,0.00014999,2]
[337387204,1725636645540,-621.32,0.00014999,2]
[337387206,1725636645550,-806.25,0.00014999,2]
[337387208,1725636645559,-806.25,0.00014999,2]
[337387210,1725636645569,-806.25,0.00014999,2]
[337387212,1725636645579,-806.25,0.00014999,2]
[337387214,1725636645588,-806.25,0.00014999,2]
[337387216,1725636645597,-806.25,0.00014999,2]
[337387218,1725636645607,-806.25,0.00014999,2]
[337387220,1725636645616,-806.25,0.00014999,2]
[337387222,1725636645626,-806.25,0.00014999,2]
[337387224,1725636645635,-806.25,0.00014999,2]
[337387226,1725636645644,-806.25,0.00014999,2]
[337387228,1725636645653,-806.25,0.00014999,2]
[337387230,1725636645662,-806.25,0.00014999,2]
[337387232,1725636645672,-806.25,0.00014999,2]
[337387234,1725636645682,-806.25,0.00014999,2]
[337387236,1725636645692,-806.25,0.00014999,2]
[337387238,1725636645701,-806.25,0.00014999,2]
[337387240,1725636645711,-806.27556685,0.00014999,2]
[337387242,1725636645721,-500.0,0.00014999,2]
[337387244,1725636645731,-500.0,0.00014999,2]
[337387246,1725636645743,-500.0,0.00014999,2]
[337387248,1725636645753,-425.44488695,0.00014999,2]
[337387250,1725636645763,-500.0,0.00014999,2]
[337387252,1725636645773,-500.0,0.00014999,2]
[337387254,1725636645783,-500.0,0.00014999,2]
[337387257,1725636645793,-500.0,0.00014999,2]
[337387259,1725636645803,-500.0,0.00014999,2]
[337387261,1725636645813,-500.0,0.00014999,2]
[337387263,1725636645822,-500.0,0.00014999,2]
[337387265,1725636645832,-500.0,0.00014999,2]
[337387267,1725636645842,-500.0,0.00014999,2]
[337387270,1725636645852,-500.0,0.00014999,2]
[337387272,1725636645861,-500.0,0.00014999,2]
[337387274,1725636645871,-500.0,0.00014999,2]
[337387276,1725636645881,-500.0,0.00014999,2]
[337387278,1725636645890,-500.0,0.00014999,2]
[337387280,1725636645900,-500.0,0.00014999,2]
[337387283,1725636645909,-526.72,0.00014999,2]
[337387285,1725636645919,-500.0,0.00014999,2]
[337387287,1725636645929,-500.0,0.00014999,2]
[337387290,1725636645938,-500.0,0.00014999,2]
[337387293,1725636645948,-500.0,0.00014999,2]
[337387295,1725636645957,-500.0,0.00014999,2]
[337387298,1725636645967,-500.0,0.00014999,2]
[337387301,1725636645978,-500.0,0.00014999,2]
[337387304,1725636645987,-860.91,0.00014999,2]
[337387305,1725636645998,-500.0,0.00014999,2]
[337387307,1725636646007,-860.91,0.00014999,2]
[337387310,1725636646016,-500.0,0.00014999,2]
[337387313,1725636646026,-860.91,0.00014999,2]
[337387316,1725636646035,-500.0,0.00014999,2]
[337387319,1725636646046,-860.91,0.00014999,2]
[337387323,1725636646056,-500.0,0.00014999,2]
[337387327,1725636646065,-860.91,0.00014999,2]
[337387331,1725636646075,-500.0,0.00014999,2]
[337387335,1725636646084,-860.91,0.00014999,2]
[337387338,1725636646094,-500.0,0.00014999,2]
[337387341,1725636646104,-500.0,0.00014999,2]
[337387344,1725636646114,-860.91,0.00014999,2]
[337387346,1725636646124,-482.91046424,0.00014999,2]
[337387349,1725636646133,-860.91,0.00014999,2]
[337387352,1725636646142,-860.91,0.00014999,2]
[337387355,1725636646152,-860.91,0.00014999,2]
[337387358,1725636646161,-860.91,0.00014999,2]
[337387361,1725636646171,-860.91,0.00014999,2]
[337387364,1725636646181,-860.91,0.00014999,2]
[337387367,1725636646190,-860.91,0.00014999,2]
[337387370,1725636646200,-860.91,0.00014999,2]
[337387373,1725636646210,-860.91,0.00014999,2]
[337387376,1725636646220,-860.91,0.00014999,2]
[337387379,1725636646229,-860.99,0.00014999,2]
[337387382,1725636646238,-512.88,0.00014999,2]
[337387386,1725636646250,-512.88,0.00014999,2]
[337387389,1725636646260,-512.88,0.00014999,2]
[337387392,1725636646269,-512.88,0.00014999,2]
[337387395,1725636646279,-512.88,0.00014999,2]
[337387398,1725636646290,-512.88,0.00014999,2]
[337387401,1725636646299,-512.88,0.00014999,2]
[337387404,1725636646308,-512.88,0.00014999,2]
[337387407,1725636646318,-512.88,0.00014999,2]
[337387410,1725636646327,-512.88,0.00014999,2]
[337387413,1725636646338,-512.88,0.00014999,2]
[337387416,1725636646349,-512.88,0.00014999,2]
[337387419,1725636646359,-512.88,0.00014999,2]
[337387421,1725636646368,-512.88,0.00014999,2]
[337387423,1725636646379,-512.88,0.00014999,2]
[337387425,1725636646388,-512.88,0.00014999,2]
[337387427,1725636646399,-512.88,0.00014999,2]
[337387429,1725636646409,-513.07,0.00014999,2]
[337387431,1725636646418,-500.0,0.00014999,2]
[337387438,1725636646479,-500.0,0.00014999,2]
[337387441,1725636646491,-500.0,0.00014999,2]
[337387443,1725636646500,-500.0,0.00014999,2]
[337387445,1725636646509,-500.0,0.00014999,2]
[337387447,1725636646519,-500.0,0.00014999,2]
[337387449,1725636646528,-500.0,0.00014999,2]
[337387451,1725636646537,-500.0,0.00014999,2]
[337387452,1725636646547,-500.0,0.00014999,2]
[337387454,1725636646556,-500.0,0.00014999,2]
[337387456,1725636646565,-500.0,0.00014999,2]
[337387458,1725636646575,-500.0,0.00014999,2]
[337387460,1725636646584,-500.0,0.00014999,2]
[337387462,1725636646593,-500.0,0.00014999,2]
[337387464,1725636646603,-500.0,0.00014999,2]
[337387466,1725636646612,-500.0,0.00014999,2]
[337387469,1725636646623,-500.0,0.00014999,2]
[337387471,1725636646633,-232.01595967,0.00014999,2]
[337387472,1725636646642,-500.0,0.00014999,2]
[337387474,1725636646651,-500.0,0.00014999,2]
[337387477,1725636646661,-500.0,0.00014999,2]
[337387479,1725636646671,-500.0,0.00014999,2]
[337387481,1725636646682,-500.0,0.00014999,2]
[337387483,1725636646691,-500.0,0.00014999,2]
[337387485,1725636646701,-557.2,0.00014999,2]
[337387487,1725636646710,-9260.05,0.00014999,2]
[337387489,1725636646720,-9260.05,0.00014999,2]
[337387491,1725636646729,-9260.05,0.00014999,2]
[337387493,1725636646739,-9260.05,0.00014999,2]
[337387495,1725636646753,-9260.05,0.00014999,2]
[337387498,1725636646763,-9260.05,0.00014999,2]
[337387501,1725636646775,-9260.05,0.00014999,2]
[337387504,1725636646784,-9260.05,0.00014999,2]
[337387507,1725636646794,-9260.05,0.00014999,2]
[337387510,1725636646803,-9260.05,0.00014999,2]
[337387513,1725636646812,-9260.05,0.00014999,2]
[337387514,1725636646821,-9260.05,0.00014999,2]
[337387516,1725636646831,-9260.05,0.00014999,2]
[337387518,1725636646841,-9260.05,0.00014999,2]
[337387520,1725636646850,-9260.05,0.00014999,2]
[337387522,1725636646860,-9260.05,0.00014999,2]
[337387524,1725636646869,-9260.05,0.00014999,2]
[337387526,1725636646879,-9260.1258,0.00014999,2]
[337387528,1725636646889,-629.44,0.00014999,2]
[337387530,1725636646899,-629.44,0.00014999,2]
[337387532,1725636646908,-629.44,0.00014999,2]
[337387534,1725636646917,-629.44,0.00014999,2]
[337387536,1725636646926,-629.44,0.00014999,2]
[337387538,1725636646935,-629.44,0.00014999,2]
[337387540,1725636646944,-629.44,0.00014999,2]
[337387542,1725636646953,-629.44,0.00014999,2]
[337387544,1725636646962,-629.44,0.00014999,2]
[337387546,1725636646974,-629.44,0.00014999,2]
[337387548,1725636646983,-629.44,0.00014999,2]
[337387550,1725636646995,-629.44,0.00014999,2]
[337387552,1725636647005,-629.44,0.00014999,2]
[337387554,1725636647015,-629.44,0.00014999,2]
[337387555,1725636647024,-629.44,0.00014999,2]
[337387557,1725636647033,-629.44,0.00014999,2]
[337387559,1725636647043,-629.44,0.00014999,2]
[337387561,1725636647051,-629.64992629,0.00014999,2]
[337387563,1725636647060,-604.6,0.00014999,2]
[337387565,1725636647069,-604.6,0.00014999,2]
[337387567,1725636647078,-604.6,0.00014999,2]
[337387569,1725636647087,-604.6,0.00014999,2]
[337387570,1725636647096,-604.6,0.00014999,2]
[337387572,1725636647105,-604.6,0.00014999,2]
[337387574,1725636647115,-604.6,0.00014999,2]
[337387576,1725636647124,-604.6,0.00014999,2]
[337387578,1725636647133,-604.6,0.00014999,2]
[337387580,1725636647143,-604.6,0.00014999,2]
[337387582,1725636647152,-604.6,0.00014999,2]
[337387584,1725636647162,-604.6,0.00014999,2]
[337387586,1725636647171,-604.6,0.00014999,2]
[337387588,1725636647181,-604.6,0.00014999,2]
[337387590,1725636647191,-604.6,0.00014999,2]
[337387592,1725636647200,-604.6,0.00014999,2]
[337387594,1725636647210,-604.6,0.00014999,2]
[337387596,1725636647219,-604.7518383,0.00014999,2]
[337387598,1725636647228,-500.0,0.00014999,2]
[337387599,1725636647237,-500.0,0.00014999,2]
[337387601,1725636647251,-500.77738682,0.00014999,2]
[337387603,1725636647260,-540.2,0.00014999,2]
[337387605,1725636647269,-540.2,0.00014999,2]
[337387607,1725636647279,-540.2,0.00014999,2]
[337387609,1725636647288,-540.2,0.00014999,2]
[337387611,1725636647298,-540.2,0.00014999,2]
[337387613,1725636647308,-540.2,0.00014999,2]
[337387615,1725636647317,-540.2,0.00014999,2]
[337387617,1725636647327,-540.2,0.00014999,2]
[337387619,1725636647337,-540.2,0.00014999,2]
[337387621,1725636647346,-540.2,0.00014999,2]
[337387623,1725636647355,-540.43655876,0.00014999,2]
[337387625,1725636647366,-500.0,0.00014999,2]
[337387626,1725636647375,-500.0,0.00014999,2]
[337387628,1725636647385,-500.0,0.00014999,2]
[337387630,1725636647395,-500.0,0.00014999,2]
[337387632,1725636647404,-500.0,0.00014999,2]
[337387634,1725636647414,-500.0,0.00014999,2]
[337387636,1725636647423,-500.0,0.00014999,2]
[337387638,1725636647433,-500.0,0.00014999,2]
[337387640,1725636647442,-500.0,0.00014999,2]
[337387642,1725636647452,-500.0,0.00014999,2]
[337387644,1725636647462,-500.0,0.00014999,2]
[337387645,1725636647472,-500.0,0.00014999,2]
[337387647,1725636647482,-500.0,0.00014999,2]
[337387649,1725636647494,-500.0,0.00014999,2]
[337387651,1725636647504,-636.92,0.00014999,2]
[337387653,1725636647513,-1567.13,0.00014999,2]
[337387655,1725636647523,-1567.13,0.00014999,2]
[337387657,1725636647533,-1567.13,0.00014999,2]
[337387659,1725636647543,-1567.13,0.00014999,2]
[337387661,1725636647552,-1567.13,0.00014999,2]
[337387663,1725636647561,-1567.13,0.00014999,2]
[337387665,1725636647570,-1567.13,0.00014999,2]
[337387666,1725636647579,-1567.13,0.00014999,2]
[337387668,1725636647588,-178.77771819,0.00014999,2]
[337387670,1725636647598,-1567.13,0.00014999,2]
[337387672,1725636647607,-1567.13,0.00014999,2]
[337387674,1725636647617,-1567.13,0.00014999,2]
[337387676,1725636647626,-1567.13,0.00014999,2]
[337387678,1725636647635,-1567.13,0.00014999,2]
[337387680,1725636647645,-1567.13,0.00014999,2]
[337387682,1725636647654,-1567.13,0.00014999,2]
[337387684,1725636647664,-1567.13,0.00014999,2]
[337387686,1725636647673,-1567.13,0.00014999,2]
[337387688,1725636647683,-1567.19498864,0.00014999,2]
[337387690,1725636647692,-500.0,0.00014999,2]
[337387692,1725636647701,-500.0,0.00014999,2]
[337387693,1725636647710,-500.0,0.00014999,2]
[337387695,1725636647719,-500.0,0.00014999,2]
[337387697,1725636647729,-500.0,0.00014999,2]
[337387699,1725636647739,-500.0,0.00014999,2]
[337387701,1725636647752,-500.0,0.00014999,2]
[337387703,1725636647761,-183.76477548,0.00014999,2]
[337387705,1725636647771,-500.0,0.00014999,2]
[337387707,1725636647781,-500.0,0.00014999,2]
[337387709,1725636647791,-500.0,0.00014999,2]
[337387711,1725636647801,-215.76,0.00014999,2]
[337387713,1725636647810,-1811.26,0.00014999,2]
[337387715,1725636647820,-1811.26,0.00014999,2]
[337387717,1725636647830,-1811.26,0.00014999,2]
[337387719,1725636647839,-1811.26,0.00014999,2]
[337387721,1725636647848,-1811.26,0.00014999,2]
[337387723,1725636647859,-1811.26,0.00014999,2]
[337387725,1725636647868,-1811.26,0.00014999,2]
[337387727,1725636647877,-1811.26,0.00014999,2]
[337387729,1725636647887,-1811.26,0.00014999,2]
[337387731,1725636647896,-1811.26,0.00014999,2]
[337387733,1725636647906,-1811.26,0.00014999,2]
[337387735,1725636647916,-1811.26,0.00014999,2]
[337387737,1725636647925,-1811.26,0.00014999,2]
[337387739,1725636647934,-1811.26,0.00014999,2]
[337387741,1725636647943,-1811.26,0.00014999,2]
[337387743,1725636647953,-1811.26,0.00014999,2]
[337387745,1725636647962,-1811.26,0.00014999,2]
[337387747,1725636647976,-1811.3633651,0.00014999,2]
[337387749,1725636647986,-5800.0,0.00014999,2]
[337387751,1725636647997,-1000.0,0.00015,2]
[337387753,1725636648007,-1000.0,0.00015,2]
[337387755,1725636648018,-1000.0,0.00015,2]
[337387757,1725636648027,-1000.0,0.00015,2]
[337387759,1725636648036,-1000.0,0.00015,2]
[337387761,1725636648046,-1000.0,0.00015,2]
[337387763,1725636648055,-1000.0,0.00015,2]
[337387765,1725636648064,-1000.0,0.00015,2]
[337387766,1725636648073,-1000.0,0.00015,2]
[337387768,1725636648083,-1000.0,0.00015,2]
[337387770,1725636648092,-1000.0,0.00015,2]
[337387772,1725636648102,-1000.0,0.00015,2]
[337387774,1725636648112,-1000.0,0.00015,2]
[337387776,1725636648121,-1000.0,0.00015,2]
[337387778,1725636648130,-1000.0,0.00015,2]
[337387780,1725636648140,-4169448.04364382,0.00015,2]
[337387798,1725636648314,-500.0,0.00014794,2]
[337387799,1725636648324,-529.97024456,0.00015,2]
[337387802,1725636648336,-544.78287787,0.00015,2]
[337387804,1725636648348,-538.78268257,0.00015,2]
[337387806,1725636648359,-273.573,0.00015,2]
[337387813,1725636648423,-20000.0,0.00014794,2]
[337387815,1725636648432,-500.0,0.00014794,2]
[337387817,1725636648442,-500.0,0.00014794,2]
[337387819,1725636648451,-500.0,0.00014794,2]
[337387821,1725636648461,-500.0,0.00014794,2]
[337387823,1725636648471,-500.0,0.00014989,2]
[337387824,1725636648481,-500.0,0.00014999,2]
[337387826,1725636648491,-500.0,0.00014999,2]
[337387828,1725636648501,-217.80655557,0.00014999,2]
[337387830,1725636648511,-5301.2338519,0.00015,2]
[337387832,1725636648523,-70846.98750525,0.00015,2]
[337387835,1725636648534,-1080.0,0.00015,2]
[337387914,1725636649541,-2239302.83343818,0.00015,2]
[337387917,1725636649560,-2892.54493947,0.00015,2]
[337387919,1725636649572,-2703.0,0.00015,2]
[337387922,1725636649584,-1363.125,0.00015,2]
[337387924,1725636649596,-6136.255125,0.00015,2]
[337387926,1725636649607,-9480.11647319,0.00015,2]
[337387942,1725636649758,-150.0,0.00030091,120]
[337387953,1725636649857,-367909.91004975,0.00043,120]
[337387959,1725636649908,-1234.13085913,0.00043,120]
[337387965,1725636649959,-185.14,0.00043014,120]
[337387971,1725636650011,-150.0,0.00043198,120]
[337387976,1725636650062,-500000.0,0.0004325,120]
[337387983,1725636650116,-150.0,0.00043398,119]
[337387989,1725636650169,-151.0,0.00043479,120]
[337387996,1725636650220,-150.0,0.00043498,120]
[337388012,1725636650373,-500000.0,0.000435,120]
[337388019,1725636650427,-474.36,0.000436,36]
[337388026,1725636650484,-474.36,0.000436,36]
[337388032,1725636650540,-474.36,0.000436,36]
[337388039,1725636650595,-474.36,0.000436,36]
[337388045,1725636650659,-474.36,0.000436,36]
[337388052,1725636650717,-474.36,0.000436,36]
[337388059,1725636650774,-474.36,0.000436,36]
[337388066,1725636650833,-474.36,0.000436,36]
[337388072,1725636650888,-474.36,0.000436,36]
[337388079,1725636650946,-474.36,0.000436,36]
[337388085,1725636651003,-474.36,0.000436,36]
[337388091,1725636651057,-474.36,0.000436,36]
[337388097,1725636651108,-474.36,0.000436,36]
[337388103,1725636651158,-474.36,0.000436,36]
[337388108,1725636651209,-474.36,0.000436,36]
[337388114,1725636651262,-474.36,0.000436,36]
[337388120,1725636651311,-1000.0,0.0004363,120]
[337388126,1725636651359,-1000.0,0.0004363,120]
[337388132,1725636651409,-1000.0,0.0004363,120]
[337388138,1725636651456,-1000.0,0.0004363,120]
[337388144,1725636651508,-1000.0,0.0004363,120]
[337388150,1725636651561,-1000.0,0.0004363,120]
[337388157,1725636651612,-1000.0,0.0004363,120]
[337388163,1725636651666,-602.9890818,0.0004363,120]
[337388169,1725636651717,-150.0,0.00043696,120]
[337388175,1725636651767,-603.3336572,0.000437,120]
[337388181,1725636651819,-500000.0,0.0004375,120]
[337388188,1725636651872,-150.0,0.00043798,120]
[337388192,1725636651921,-465.60293017,0.000438,30]
[337388194,1725636651972,-1482.61172643,0.000438,111]
[337388200,1725636652029,-890.4639163,0.000438,120]
[337388207,1725636652084,-2000.0,0.000438,120]
[337388214,1725636652142,-2467.88,0.000438,60]
[337388220,1725636652193,-1342.28,0.00043835,120]
[337388226,1725636652249,-500.0,0.00043835,120]
[337388233,1725636652298,-500.0,0.00043835,120]
[337388239,1725636652350,-395.24900161,0.00043835,30]
[337388245,1725636652400,-1000.0,0.00043835,120]
[337388251,1725636652452,-1000.0,0.00043835,120]
[337388257,1725636652507,-1000.0,0.00043835,120]
[337388264,1725636652563,-1000.0,0.00043835,120]
[337388271,1725636652616,-535.8050289,0.00043835,120]
[337388278,1725636652672,-2193.73,0.00043835,120]
[337388284,1725636652727,-2159.73527303,0.00043835,30]
[337388291,1725636652793,-5528.22599988,0.00043835,72]
[337388297,1725636652847,-1061.23217624,0.00043835,72]
[337388304,1725636652908,-1000.0,0.00043836,32]
[337388309,1725636652987,-701382.35210479,0.000439,120]
[337388313,1725636653069,-50000.0,0.00044,34]
[337388320,1725636653139,-50000.0,0.00044,44]
[337388327,1725636653193,-689.11514456,0.00044,120]
[337388333,1725636653249,-2000.0,0.00044,120]
[337388340,1725636653302,-500000.0,0.00044,120]
[337388347,1725636653354,-15000.0,0.00044,120]
[337388353,1725636653408,-1000000.0,0.00044,120]
[337388360,1725636653461,-500.433261,0.00044,57]
[337388366,1725636653517,-150.0,0.00044062,120]
[337388373,1725636653576,-1342.28,0.00044109,120]
[337388380,1725636653633,-500.0,0.00044109,120]
[337388387,1725636653689,-500.0,0.00044109,120]
[337388393,1725636653741,-150.0,0.00044118,30]
[337388400,1725636653802,-1580.94,0.00044128,30]
[337388406,1725636653855,-150.0,0.00044197,30]
[337388412,1725636653909,-150.0,0.00044198,120]
[337388419,1725636653967,-2005.7,0.00044204,30]
[337388425,1725636654023,-500.0,0.00044235,120]
[337388431,1725636654078,-503.0,0.00044235,120]
[337388437,1725636654130,-448.14,0.00044248,120]
[337388444,1725636654183,-500000.0,0.0004425,120]
[337388449,1725636654232,-1006.18,0.0004429,75]
[337388455,1725636654288,-254.39,0.00044356,30]
[337388462,1725636654342,-150.0,0.0004438,120]
[337388491,1725636654638,-1342.28,0.00044383,120]
[337388498,1725636654693,-500.0,0.00044383,120]
[337388504,1725636654754,-500.0,0.00044383,120]
[337388511,1725636654817,-2193.73,0.00044383,120]
[337388518,1725636654876,-176.62997965,0.00044384,30]
[337388524,1725636654929,-150.0,0.00044384,30]
[337388530,1725636654984,-150.0,0.00044384,30]
[337388536,1725636655047,-170.28734041,0.00044384,30]
[337388543,1725636655104,-150.0,0.00044384,30]
[337388549,1725636655156,-273.4290568,0.00044384,30]
[337388556,1725636655211,-193.0618506,0.00044384,30]
[337388562,1725636655269,-150.0,0.00044384,30]
[337388569,1725636655329,-254.77716295,0.00044384,30]
[337388576,1725636655384,-150.0,0.00044384,30]
[337388582,1725636655439,-150.0,0.00044384,30]
[337388588,1725636655493,-162.83083905,0.00044384,30]
[337388595,1725636655554,-242.76025372,0.00044384,30]
[337388602,1725636655612,-542.04,0.00044384,120]
[337388608,1725636655669,-2385.02,0.00044384,120]
[337388615,1725636655728,-150.0,0.00044398,119]
[337388621,1725636655788,-428.03932853,0.000444,120]
[337388628,1725636655847,-292.0,0.000444,120]
[337388635,1725636655906,-150.0,0.00044402,30]
[337388641,1725636655964,-1491.51,0.00044423,30]
[337388648,1725636656024,-176.62997965,0.00044433,30]
[337388654,1725636656082,-150.0,0.00044466,30]
[337388661,1725636656137,-176.62997965,0.00044483,30]
[337388667,1725636656197,-150.0,0.00044498,120]
[337388669,1725636656258,-500000.0,0.000445,120]
[337388670,1725636656318,-150.0,0.00044504,30]
[337388672,1725636656377,-176.62997965,0.00044533,30]
[337388679,1725636656435,-150.0,0.00044548,30]
[337388685,1725636656493,-150.0,0.00044569,30]
[337388692,1725636656557,-176.62997965,0.00044583,30]
[337388699,1725636656614,-928.89,0.00044601,30]
[337388706,1725636656675,-151.0,0.00044603,120]
[337388712,1725636656728,-150.0,0.00044624,30]
[337388719,1725636656784,-150.0,0.0004463,30]
[337388725,1725636656843,-176.62997965,0.00044633,30]
[337388732,1725636656902,-782.16,0.00044643,30]
[337388739,1725636656958,-150.0,0.00044646,30]
[337388745,1725636657018,-150.0,0.00044653,30]
[337388752,1725636657075,-1342.28,0.00044657,120]
[337388759,1725636657131,-500.0,0.00044657,120]
[337388765,1725636657187,-500.0,0.00044657,120]
[337388772,1725636657242,-176.62997965,0.00044682,30]
[337388778,1725636657299,-307.5,0.00044692,30]
[337388785,1725636657349,-1391.91,0.00044697,30]
[337388791,1725636657403,-150.0,0.00044706,30]
[337388798,1725636657455,-150.0,0.00044712,30]
[337388805,1725636657517,-150.0,0.00044712,30]
[337388811,1725636657572,-176.62997965,0.00044732,30]
[337388818,1725636657633,-150.0,0.00044744,30]
[337388825,1725636657692,-176.62997965,0.00044782,30]
[337388832,1725636657749,-150.0,0.00044794,30]
[337388839,1725636657813,-150.0,0.00044798,120]
[337388845,1725636657871,-65092.28515366,0.000448,60]
[337388852,1725636657922,-2678.5689,0.000448,60]
[337388856,1725636657979,-150.0,0.00044801,120]
[337388857,1725636658031,-176.62997965,0.00044832,30]
[337388858,1725636658088,-150.0,0.00044865,30]
[337388859,1725636658148,-150.0,0.00044877,30]
[337388860,1725636658207,-176.62997965,0.00044882,30]
[337388866,1725636658265,-150.0,0.00044896,30]
[337388873,1725636658326,-390.36753755,0.000449,120]
[337388880,1725636658388,-1342.28,0.00044931,120]
[337388887,1725636658451,-629.86569313,0.00044931,120]
[337388893,1725636658508,-500.0,0.00044931,120]
[337388900,1725636658566,-2193.73,0.00044931,120]
[337388907,1725636658623,-176.62997965,0.00044931,30]
[337388909,1725636658680,-150.0,0.00044959,30]
[337388910,1725636658786,-176.62997965,0.00044981,30]
[337388911,1725636658843,-150.0,0.00044985,30]
[337388912,1725636658901,-1000.0,0.00044999,120]
[337388913,1725636658957,-50000.0,0.00045,35]
[337388914,1725636659021,-50000.0,0.00045,45]
[337388915,1725636659075,-150.0,0.00045,85]
[337388916,1725636659131,-252.58025658,0.00045,120]
[337388917,1725636659185,-1619.44387043,0.00045,90]
[337388924,1725636659240,-4924.52569577,0.00045,120]
[337388927,1725636659300,-186.01971347,0.00045,30]
[337388928,1725636659356,-880.65296093,0.00045,120]
[337388929,1725636659408,-257.58660526,0.00045,40]
[337388930,1725636659462,-866.07215333,0.00045,120]
[337388931,1725636659522,-629.25788785,0.00045,120]
[337388932,1725636659579,-537.34606712,0.00045,120]
[337388934,1725636659637,-743.0,0.00045,120]
[337388939,1725636659695,-564.0,0.00045,120]
[337388945,1725636659753,-1500.76630679,0.00045,120]
[337388947,1725636659809,-500000.0,0.00045,120]
[337388948,1725636659864,-349.35155073,0.00045,120]
[337388949,1725636659917,-41595.47177108,0.00045,120]
[337388950,1725636659976,-2059.0,0.00045,120]
[337388951,1725636660034,-3874.52209802,0.00045,120]